bitfinex/quotes_SOLUSD_20250831
["timestamp","ask_amount","ask_price","bid_price","bid_amount"]
[1756635330463,0.70000001,204.18,204.17,143.59523736]
[1756635330665,0.70000001,204.18,204.17,181.75523736]
[1756635332771,1e-08,204.18,204.17,181.75523736]
[1756635333264,0.67000001,204.18,204.17,181.75523736]
[1756635334359,0.67000001,204.18,204.17,129.99964335]
[1756635334677,0.67000001,204.18,204.17,41.24176414]
[1756635335055,2.63295001,204.18,204.17,41.24176414]
[1756635337082,2.63295001,204.18,204.17,41.24853188]
[1756635343595,2.63295001,204.18,204.17,46.14641109]
[1756635343773,1.96295001,204.18,204.17,46.14641109]
[1756635343966,1e-08,204.18,204.17,46.13381758]
[1756635344974,1e-08,204.18,204.17,46.16381758]
[1756635345576,0.67000001,204.18,204.17,46.16381758]
[1756635345777,0.67000001,204.18,204.17,41.26593837]
[1756635345984,2.69295001,204.18,204.17,41.26593837]
[1756635347068,1e-08,204.18,204.17,41.93593837]
[1756635347284,0.06,204.19,204.17,46.16381758]
[1756635347594,0.06,204.19,204.18,3.09742078]
[1756635348195,0.06,204.19,204.18,3.76742078]
[1756635348484,0.06,204.19,204.18,3.78248679]
[1756635348683,0.06,204.19,204.18,17.3780808]
[1756635348993,0.06,204.19,204.18,22.27572013]
[1756635349869,0.06,204.19,204.18,144.27572013]
[1756635354805,0.06,204.19,204.18,143.60572013]
[1756635354982,0.06,204.19,204.18,144.27572013]
[1756635355179,1e-08,204.19,204.18,144.27572013]
[1756635356999,0.67000001,204.19,204.18,41.25248679]
[1756635358185,0.67000001,204.19,204.18,41.25176901]
[1756635358684,0.67000001,204.19,204.18,3.11176901]
[1756635358883,0.67000001,204.19,204.18,41.25176901]
[1756635360913,1e-08,204.19,204.18,46.14940834]
[1756635363811,0.06,204.21,204.19,13.59559401]
[1756635363992,0.06,204.21,204.2,54.84736302]
[1756635364198,0.06,204.21,204.2,41.25162707]
[1756635364814,0.73,204.21,204.2,41.25162707]
[1756635367605,0.73,204.21,204.2,1.67162707]
[1756635367606,5.62691983,204.21,204.2,1.67162707]
[1756635367834,5.62691983,204.21,204.18,0.03]
[1756635367835,39.59559401,204.19,204.18,0.03]
[1756635368320,39.59559401,204.19,204.17,0.03]
[1756635368495,41.55931401,204.19,204.17,0.03]
[1756635368691,0.61,204.18,204.17,0.03]
[1756635368999,26.61,204.18,204.17,0.03]
[1756635369712,0.61,204.18,204.17,0.03]
[1756635370188,26.61,204.18,204.17,0.03]
[1756635371206,1.96372,204.19,204.17,0.03]
[1756635372294,1.96372,204.19,204.17,38.43]
[1756635372816,0.06,204.21,204.18,0.7]
[1756635373116,1.96372,204.2,204.18,0.7]
[1756635373610,14.78212,204.21,204.18,0.7]
[1756635373810,14.78212,204.21,204.18,5.59763549]
[1756635374132,0.06,204.21,204.19,0.7]
[1756635374530,0.06,204.21,204.2,38.4]
[1756635376740,0.06,204.21,204.2,39.1]
[1756635377113,0.06,204.21,204.2,38.4]
[1756635378130,0.06,204.21,204.2,39.1]
[1756635378326,0.06,204.21,204.2,38.4]
[1756635384937,0.06,204.21,204.2,39.1]
[1756635385115,0.06,204.21,204.2,38.4]
[1756635385547,0.06,204.21,204.2,38.3]
[1756635386043,0.67,204.21,204.2,38.3]
[1756635386227,0.06,204.21,204.2,38.3]
[1756635389449,26.06,204.21,204.2,38.3]
[1756635390960,0.06,204.21,204.2,39.0]
[1756635391262,26.06,204.21,204.2,39.0]
[1756635391561,26.06,204.21,204.2,38.3]
[1756635393957,31.56691983,204.21,204.18,0.03]
[1756635394338,30.95691983,204.21,204.18,0.03]
[1756635394543,31.56691983,204.21,204.18,0.03]
[1756635395453,6.86047229,204.2,204.18,0.03]
[1756635396163,13.59559401,204.18,204.17,0.03]
[1756635396660,39.59559401,204.16,204.15,0.03]
[1756635397263,40.20559401,204.16,204.15,0.03]
[1756635397471,42.16960301,204.16,204.15,0.03]
[1756635398950,47.06772213,204.16,204.15,0.03]
[1756635401647,32.86212812,204.16,204.15,0.03]
[1756635402264,33.47212812,204.16,204.15,0.03]
[1756635402838,47.06772213,204.16,204.15,0.03]
[1756635403043,46.45772213,204.16,204.15,0.03]
[1756635403244,32.86212812,204.16,204.15,0.03]
[1756635403441,47.06772213,204.16,204.15,0.03]
[1756635404958,85.36772213,204.16,204.15,1e-08]
[1756635410662,85.30772213,204.16,204.15,1e-08]
[1756635413275,46.45772213,204.16,204.15,1e-08]
[1756635413466,84.67772213,204.16,204.15,1e-08]
[1756635416075,6.86212812,204.16,204.15,0.66000001]
[1756635418982,2.024009,204.16,204.15,0.66000001]
[1756635424081,28.024009,204.16,204.15,0.66000001]
[1756635426171,2.024009,204.16,204.15,0.66000001]
[1756635435087,28.024009,204.16,204.15,0.66000001]
[1756635436572,2.024009,204.16,204.15,1e-08]
[1756635437778,6.92212812,204.16,204.15,1e-08]
[1756635438276,2.024009,204.16,204.15,0.66000001]
[1756635438668,0.06,204.16,204.15,0.66000001]
[1756635438870,2.023238,204.16,204.15,0.66000001]
[1756635444793,2.023238,204.16,204.15,1e-08]
[1756635445094,21.12695113,204.16,204.15,1e-08]
[1756635446079,21.12695113,204.16,204.14,1e-08]
[1756635446280,39.59559401,204.13,204.12,0.03]
[1756635446698,40.20559401,204.13,204.12,0.03]
[1756635447003,47.06873198,204.13,204.12,0.03]
[1756635447709,47.06873198,204.13,204.08,0.03]
[1756635448003,0.61,204.12,204.08,0.03]
[1756635448704,0.61,204.11,204.08,0.03]
[1756635449393,19.104913,204.11,204.08,0.03]
[1756635449786,21.069501,204.11,204.08,0.03]
[1756635450582,25.08105291,204.11,204.08,0.03]
[1756635451590,10.8754589,204.11,204.08,0.03]
[1756635452491,27.964588,204.11,204.1,0.68]
[1756635453507,6.86390699,204.11,204.1,0.68]
[1756635453810,6.86390699,204.11,204.1,0.03]
[1756635455794,6.86390699,204.11,204.1,0.68]
[1756635455996,32.86390699,204.11,204.1,0.68]
[1756635456207,6.86390699,204.11,204.1,0.68]
[1756635456610,32.86390699,204.11,204.1,0.03]
[1756635456917,6.86390699,204.11,204.1,0.03]
[1756635457413,32.86390699,204.11,204.1,0.03]
[1756635457720,6.86390699,204.11,204.1,0.03]
[1756635459501,47.069501,204.11,204.1,0.03]
[1756635459692,21.069501,204.11,204.1,0.03]
[1756635460428,47.069501,204.11,204.1,0.03]
[1756635460609,59.249501,204.11,204.1,0.03]
[1756635462894,6.86390699,204.11,204.1,0.03]
[1756635463093,45.04390699,204.11,204.1,0.03]
[1756635467120,45.04390699,204.11,204.1,0.68]
[1756635467525,6.86390699,204.11,204.1,0.68]
[1756635468613,6.86390699,204.11,204.1,0.03]
[1756635470502,45.04390699,204.11,204.1,0.03]
[1756635471819,13.59559401,204.1,204.08,0.03]
[1756635472202,77.77559401,204.09,204.08,0.03]
[1756635472639,82.67539311,204.09,204.08,0.03]
[1756635473002,84.64007811,204.09,204.08,0.03]
[1756635479009,71.0444841,204.09,204.08,0.03]
[1756635480438,32.8644841,204.09,204.08,0.03]
[1756635480630,32.8644841,204.09,204.08,0.68]
[1756635481911,1.964685,204.09,204.08,0.68]
[1756635482715,6.8644841,204.09,204.08,0.03]
[1756635483928,45.0444841,204.09,204.08,0.03]
[1756635484151,59.25007811,204.09,204.08,0.03]
[1756635484437,58.64007811,204.09,204.08,0.03]
[1756635486712,6.8644841,204.09,204.08,0.7]
[1756635487334,20.46007811,204.09,204.08,0.03]
[1756635487942,13.59559401,204.08,204.07,0.03]
[1756635488120,51.77559401,204.08,204.07,0.03]
[1756635488728,26.0,204.06,204.05,0.03]
[1756635488936,77.77559401,204.06,204.05,0.03]
[1756635489239,77.77559401,204.06,204.0,90.0]
[1756635489240,13.59559401,204.05,204.0,90.67]
[1756635489444,26.0,204.01,204.0,90.67]
[1756635490040,40.738756,204.01,204.0,90.67]
[1756635490345,45.6404765,204.01,204.0,90.67]
[1756635494956,40.738756,204.01,204.0,90.67]
[1756635500644,45.6404765,204.01,204.0,90.67]
[1756635501226,45.6404765,204.01,204.0,90.0]
[1756635508352,59.84607051,204.01,204.0,64.36849432]
[1756635510146,59.84607051,204.01,204.0,19.41238011]
[1756635510351,83.8004765,204.01,204.0,19.41238011]
[1756635510948,45.6404765,204.01,204.0,19.41238011]
[1756635511348,83.8004765,204.01,204.0,19.41238011]
[1756635511546,45.6404765,204.01,204.0,20.08238011]
[1756635514458,45.6404765,204.01,204.0,19.41238011]
[1756635514968,59.23607051,204.01,204.0,19.41238011]
[1756635515168,45.6404765,204.01,204.0,20.13238011]
[1756635515375,83.8004765,204.01,204.0,20.13238011]
[1756635515569,83.8004765,204.01,204.0,19.41238011]
[1756635516865,84.4104765,204.01,204.0,19.41238011]
[1756635517066,98.00607051,204.01,204.0,19.41238011]
[1756635517266,13.59559401,203.98,203.97,1e-08]
[1756635517466,51.77559401,203.98,203.97,1e-08]
[1756635517663,26.0,203.91,203.89,0.72]
[1756635517850,26.0,203.9,203.89,0.72]
[1756635518563,45.65036588,203.9,203.89,0.72]
[1756635519274,45.65036588,203.9,203.87,0.72]
[1756635519461,83.93036588,203.9,203.8,38.28]
[1756635519848,83.93036588,203.9,203.81,0.72]
[1756635520053,26.0,203.86,203.81,0.72]
[1756635520280,64.4,203.86,203.81,0.72]
[1756635520575,26.0,203.83,203.81,0.72]
[1756635520774,26.0,203.82,203.81,0.72]
[1756635524187,26.0,203.82,203.76,122.0]
[1756635524377,26.0,203.81,203.77,0.72]
[1756635524761,26.0,203.81,203.78,0.72]
[1756635524962,14.753252,203.8,203.78,0.72]
[1756635525460,26.0,203.77,203.75,0.882]
[1756635525662,26.0,203.77,203.76,0.72]
[1756635528158,26.0,203.79,203.76,0.72]
[1756635528380,14.753977,203.77,203.76,0.75]
[1756635528577,14.753977,203.77,203.76,0.03]
[1756635529277,14.753977,203.77,203.76,0.75]
[1756635534885,14.753977,203.77,203.76,0.03]
[1756635535573,19.66147074,203.77,203.76,0.03]
[1756635536075,14.753977,203.77,203.76,0.03]
[1756635536281,14.753977,203.77,203.76,0.75]
[1756635536681,14.753977,203.77,203.76,0.03]
[1756635536878,14.753977,203.77,203.73,0.03]
[1756635536879,39.59559401,203.74,203.73,0.03]
[1756635537079,78.13559401,203.74,203.73,0.03]
[1756635537485,93.47610401,203.74,203.73,0.03]
[1756635538086,98.38432036,203.74,203.73,0.03]
[1756635539281,14.76051,203.74,203.73,0.75]
[1756635540294,39.14,203.83,203.73,0.75]
[1756635540594,13.595594,203.76,203.73,0.75]
[1756635541676,0.68,203.87,203.74,13.59559401]
[1756635541877,0.68,203.87,203.75,0.7]
[1756635541878,0.68,203.86,203.75,0.7]
[1756635542077,19.65590246,203.83,203.75,0.7]
[1756635542382,26.0,203.8,203.75,122.7]
[1756635542583,14.749625,203.83,203.76,0.7]
[1756635542786,0.68,203.87,203.77,13.59559401]
[1756635543094,14.74745,203.85,203.79,13.59559401]
[1756635543292,14.74745,203.85,203.8,0.7]
[1756635543494,26.0,203.87,203.8,0.7]
[1756635543687,14.746725,203.86,203.8,0.7]
[1756635544275,18.49899697,203.94,203.81,4.90653059]
[1756635544593,39.86,203.93,203.82,0.7]
[1756635544775,26.0,203.9,203.82,0.7]
[1756635544971,14.746,203.88,203.82,0.7]
[1756635545172,26.0,203.85,203.8,0.7]
[1756635545378,26.68,203.85,203.8,0.7]
[1756635545802,26.0,203.85,203.81,0.7]
[1756635546390,26.0,203.84,203.81,0.7]
[1756635547485,26.0,203.84,203.82,0.7]
[1756635547679,26.0,203.85,203.83,0.7]
[1756635548899,14.746,203.88,203.84,0.7]
[1756635549202,14.746,203.88,203.85,0.7]
[1756635549402,26.0,203.86,203.85,0.7]
[1756635549595,26.0,203.86,203.81,4.9064522]
[1756635549793,26.0,203.86,203.82,0.7]
[1756635550193,0.68,203.9,203.82,39.82]
[1756635550398,0.68,203.89,203.82,39.82]
[1756635550605,14.745276,203.88,203.82,39.82]
[1756635550900,26.0,203.85,203.82,39.12]
[1756635551206,26.68,203.85,203.82,39.12]
[1756635551503,26.0,203.85,203.82,39.12]
[1756635551696,26.68,203.85,203.82,39.12]
[1756635551898,26.68,203.85,203.74,38.27048046]
[1756635551899,0.68,203.84,203.77,0.7]
[1756635552082,0.68,203.84,203.74,21.34]
[1756635552280,26.0,203.81,203.75,0.7]
[1756635552488,0.68,203.81,203.75,0.7]
[1756635552716,0.68,203.81,203.75,122.7]
[1756635552890,14.751075,203.8,203.75,122.7]
[1756635553090,15.431075,203.8,203.75,122.7]
[1756635553290,14.751075,203.8,203.76,0.7]
[1756635553977,19.65786792,203.8,203.76,0.7]
[1756635554204,0.68,203.79,203.74,21.34]
[1756635554401,0.68,203.79,203.74,22.04]
[1756635554706,14.751075,203.8,203.75,0.7]
[1756635554896,14.751075,203.8,203.76,0.7]
[1756635555084,14.751075,203.8,203.77,0.7]
[1756635555404,14.751075,203.8,203.74,26.2480988]
[1756635555405,14.751075,203.8,203.78,0.7]
[1756635555806,14.751075,203.8,203.74,26.24797843]
[1756635555993,14.751075,203.8,203.76,0.7]
[1756635556305,15.431075,203.8,203.74,26.24797843]
[1756635556812,15.431075,203.8,203.74,21.34]
[1756635557116,20.33789253,203.8,203.74,143.34]
[1756635557498,20.33789253,203.8,203.74,144.04]
[1756635557694,14.751075,203.8,203.75,0.7]
[1756635557890,14.751075,203.8,203.76,0.7]
[1756635558206,14.751075,203.8,203.74,148.24820881]
[1756635558418,14.751075,203.8,203.75,0.7]
[1756635558623,14.751075,203.8,203.76,0.7]
[1756635559514,14.751075,203.8,203.77,0.7]
[1756635559683,14.751075,203.8,203.74,143.34]
[1756635559890,14.751075,203.8,203.78,0.7]
[1756635560718,14.751075,203.8,203.75,4.90797546]
[1756635560895,14.751075,203.8,203.76,0.7]
[1756635561407,14.751075,203.8,203.77,0.7]
[1756635563593,14.751075,203.8,203.75,5.60797101]
[1756635563816,14.751075,203.8,203.76,0.7]
[1756635564016,15.431075,203.8,203.76,0.7]
[1756635564217,15.431075,203.8,203.76,0.73]
[1756635564519,14.811075,203.8,203.76,5.63767398]
[1756635564892,0.06,203.8,203.76,5.63767398]
[1756635565088,0.06,203.8,203.76,0.73]
[1756635565293,0.74,203.8,203.76,0.73]
[1756635566714,0.06,203.8,203.76,0.03]
[1756635566894,0.68,203.79,203.76,0.03]
[1756635567214,0.06,203.8,203.76,0.03]
[1756635567409,0.68,203.78,203.76,0.03]
[1756635568816,4.90749374,203.77,203.76,0.03]
[1756635569201,31.58749374,203.77,203.76,0.03]
[1756635575108,46.34364774,203.77,203.76,0.03]
[1756635578617,26.0,203.77,203.76,0.03]
[1756635579029,33.54478674,203.77,203.76,0.03]
[1756635580711,47.14038075,203.77,203.76,0.03]
[1756635580920,85.94038075,203.77,203.76,0.03]
[1756635581801,33.54478674,203.77,203.76,0.03]
[1756635582609,32.87478674,203.77,203.76,0.03]
[1756635583015,32.93478674,203.77,203.76,0.03]
[1756635583407,33.60478674,203.77,203.76,0.03]
[1756635585404,2.027293,203.77,203.76,0.03]
[1756635585605,2.027293,203.77,203.76,0.74]
[1756635585805,2.027293,203.77,203.76,0.03]
[1756635586005,32.93478674,203.77,203.76,0.03]
[1756635586228,33.60478674,203.77,203.76,0.03]
[1756635586526,72.48478674,203.77,203.76,0.03]
[1756635587127,33.60478674,203.77,203.76,0.03]
[1756635588317,72.54478674,203.77,203.76,0.03]
[1756635588518,86.14038075,203.77,203.76,0.03]
[1756635589814,47.20038075,203.77,203.76,0.03]
[1756635590013,86.12038075,203.77,203.76,0.03]
[1756635590823,33.60478674,203.77,203.76,0.03]
[1756635591429,32.93478674,203.77,203.76,0.03]
[1756635591730,33.60478674,203.77,203.76,0.03]
[1756635592134,32.93478674,203.77,203.76,0.03]
[1756635594721,6.93478674,203.77,203.76,0.03]
[1756635594920,32.93478674,203.77,203.76,0.03]
[1756635595128,6.93478674,203.77,203.76,0.03]
[1756635596734,33.60478674,203.77,203.76,0.03]
[1756635596937,7.60478674,203.77,203.76,0.03]
[1756635599933,6.93478674,203.77,203.76,0.74]
[1756635600634,6.93478674,203.77,203.76,0.03]
[1756635600826,2.027293,203.77,203.76,0.74]
[1756635601230,6.93478674,203.77,203.76,0.74]
[1756635601616,6.93478674,203.77,203.76,0.03]
[1756635603074,2.027293,203.77,203.76,0.68]
[1756635603257,0.06,203.77,203.76,0.68]
[1756635603440,9.87618074,203.77,203.76,0.03]
[1756635603946,35.87618074,203.77,203.76,0.03]
[1756635606434,30.968687,203.77,203.76,0.68]
[1756635606636,0.06,203.77,203.76,0.68]
[1756635608143,0.06,203.77,203.76,14.27559401]
[1756635608342,0.06,203.77,203.76,19.18332859]
[1756635608749,0.06,203.8,203.77,13.59559401]
[1756635608953,0.06,203.8,203.79,13.59559401]
[1756635609344,0.06,203.8,203.79,136.24559401]
[1756635610055,1e-08,203.8,203.79,136.24559401]
[1756635610438,1e-08,203.8,203.79,141.15260613]
[1756635610839,1e-08,203.82,203.79,141.15260613]
[1756635611051,1e-08,203.82,203.81,13.59559401]
[1756635611442,1e-08,203.82,203.81,0.65]
[1756635612057,1e-08,203.82,203.81,5.55653059]
[1756635613560,1e-08,203.82,203.81,45.1521246]
[1756635613750,1e-08,203.82,203.81,39.1521246]
[1756635613949,0.66,203.93,203.81,31.41845108]
[1756635614155,0.66,203.93,203.85,13.59559401]
[1756635614649,0.66,203.93,203.86,0.65]
[1756635614849,0.66,203.93,203.87,38.94]
[1756635615050,0.66,203.93,203.87,39.59]
[1756635615238,26.0,203.95,203.88,0.65]
[1756635615641,0.66,203.94,203.88,0.65]
[1756635616250,4.9036434,203.93,203.88,0.65]
[1756635616570,5.5636434,203.93,203.88,0.65]
[1756635616859,0.66,203.93,203.88,0.65]
[1756635617866,0.66,203.92,203.87,38.94]
[1756635618167,0.66,203.92,203.87,39.59]
[1756635618465,0.66,203.92,203.87,39.55]
[1756635619450,5.56391858,203.92,203.87,39.55]
[1756635619948,0.66,203.91,203.87,39.55]
[1756635620144,0.66,203.91,203.84,5.5555832]
[1756635620360,0.66,203.9,203.85,38.86]
[1756635620750,19.6481944,203.93,203.86,0.65]
[1756635620964,0.66,203.94,203.86,0.65]
[1756635621166,5.5634092,203.94,203.86,0.65]
[1756635621758,4.9034092,203.94,203.86,0.65]
[1756635621960,0.2,203.98,203.88,13.59559401]
[1756635622161,0.06,203.92,203.89,0.65]
[1756635622365,0.06,203.92,203.9,38.88]
[1756635622571,0.06,203.92,203.91,0.65]
[1756635623068,0.06,203.92,203.9,38.88]
[1756635623266,0.72,203.92,203.9,38.88]
[1756635623469,0.06,203.92,203.9,38.88]
[1756635625169,0.06,203.92,203.9,39.53]
[1756635634061,0.76,203.92,203.9,38.88]
[1756635634370,0.06,203.92,203.88,0.67]
[1756635634577,0.7,203.91,203.86,0.67]
[1756635634873,0.7,203.91,203.83,13.59559401]
[1756635634874,0.7,203.9,203.84,0.67]
[1756635635073,0.7,203.9,203.85,38.72]
[1756635635253,0.7,203.9,203.86,0.67]
[1756635635763,0.7,203.89,203.85,38.72]
[1756635635961,0.7,203.91,203.85,39.39]
[1756635636158,0.06,203.92,203.86,0.67]
[1756635639158,0.06,203.92,203.86,5.57525173]
[1756635639371,0.06,203.92,203.87,0.67]
[1756635639572,0.06,203.92,203.88,0.67]
[1756635639873,0.06,203.92,203.89,39.41]
[1756635640076,0.06,203.92,203.89,38.74]
[1756635640456,0.06,203.92,203.89,39.41]
[1756635641171,0.76,203.92,203.89,38.74]
[1756635641373,0.76,203.92,203.87,38.72]
[1756635641374,0.7,203.91,203.87,38.72]
[1756635641565,0.7,203.9,203.87,38.72]
[1756635642080,0.7,203.89,203.87,38.72]
[1756635642265,5.60412436,203.91,203.87,38.72]
[1756635642466,0.7,203.9,203.87,38.72]
[1756635643778,5.60439464,203.9,203.87,38.72]
[1756635643976,4.90439464,203.9,203.87,38.72]
[1756635644978,5.66409147,203.92,203.87,39.39]
[1756635645283,26.06,203.92,203.88,0.67]
[1756635645491,26.06,203.92,203.89,0.67]
[1756635647788,26.06,203.92,203.87,38.72]
[1756635648103,30.96389346,203.92,203.87,39.39]
[1756635648270,26.06,203.92,203.88,0.67]
[1756635648471,26.06,203.92,203.89,0.67]
[1756635648866,26.06,203.92,203.87,43.62506623]
[1756635649087,26.06,203.92,203.89,0.67]
[1756635649566,26.06,203.92,203.87,43.62506623]
[1756635649771,26.06,203.92,203.88,0.67]
[1756635649984,26.06,203.92,203.89,0.67]
[1756635651394,26.06,203.92,203.87,38.72]
[1756635651696,31.66388574,203.92,203.88,0.67]
[1756635651994,26.76,203.92,203.88,0.67]
[1756635653902,26.06,203.92,203.88,0.67]
[1756635654090,26.76,203.92,203.87,39.39]
[1756635654289,26.76,203.92,203.88,0.67]
[1756635654676,31.66388696,203.92,203.88,0.67]
[1756635654875,0.7,203.91,203.87,38.72]
[1756635655174,0.7,203.9,203.87,38.72]
[1756635655622,30.96388696,203.92,203.87,38.72]
[1756635655774,31.66388696,203.92,203.87,39.39]
[1756635655980,0.7,203.91,203.87,39.39]
[1756635656479,0.7,203.91,203.88,0.67]
[1756635657392,0.7,203.91,203.87,38.72]
[1756635657602,0.7,203.91,203.87,39.39]
[1756635657772,30.96388696,203.92,203.88,0.67]
[1756635658094,31.66388696,203.92,203.88,0.67]
[1756635658590,30.96388696,203.92,203.87,38.72]
[1756635658788,0.7,203.91,203.87,39.39]
[1756635659194,26.06,203.92,203.88,0.67]
[1756635659492,0.06,203.92,203.89,0.67]
[1756635660289,0.06,203.92,203.9,13.59559401]
[1756635660611,0.06,203.92,203.91,39.19]
[1756635661475,0.06,203.92,203.91,44.09412436]
[1756635663297,0.06,203.92,203.91,166.09412436]
[1756635663486,0.06,203.92,203.91,179.68971837]
[1756635667400,0.06,203.92,203.91,141.16971837]
[1756635667600,0.06,203.92,203.91,122.0]
[1756635667797,0.06,203.92,203.91,38.46]
[1756635668000,0.06,203.92,203.91,44.07412436]
[1756635670806,0.06,203.92,203.91,166.07412436]
[1756635672499,0.06,203.92,203.91,161.17]
[1756635672703,0.73,203.92,203.88,13.59559401]
[1756635673001,0.73,203.92,203.89,38.42]
[1756635674605,0.06,203.92,203.89,38.42]
[1756635674913,0.06,203.92,203.89,39.13]
[1756635675098,0.06,203.92,203.9,0.71]
[1756635675303,0.06,203.92,203.91,38.42]
[1756635675619,0.06,203.92,203.91,160.42]
[1756635675822,0.06,203.92,203.91,161.13]
[1756635677882,0.73,203.92,203.87,0.71]
[1756635678081,0.73,203.92,203.82,12.29532099]
[1756635678082,0.73,203.92,203.88,39.13]
[1756635678904,0.67,203.91,203.83,4.90604915]
[1756635679108,0.67,203.9,203.84,39.13]
[1756635680408,0.67,203.9,203.85,0.71]
[1756635680587,0.67,203.9,203.86,39.13]
[1756635681002,0.67,203.9,203.86,161.13]
[1756635681189,5.63388419,203.92,203.87,0.71]
[1756635681388,0.67,203.91,203.88,38.42]
[1756635681588,0.67,203.9,203.88,38.42]
[1756635682308,4.96388419,203.92,203.88,38.42]
[1756635682614,0.67,203.91,203.88,38.42]
[1756635685803,26.06,203.92,203.89,0.71]
[1756635686112,0.06,203.92,203.9,39.13]
[1756635687016,0.06,203.92,203.91,0.71]
[1756635687809,0.06,203.92,203.91,122.71]
[1756635688002,0.06,203.92,203.91,127.61412436]
[1756635689190,0.06,203.92,203.91,122.0]
[1756635689406,0.06,203.92,203.91,122.71]
[1756635690805,0.06,203.92,203.91,5.61412436]
[1756635692615,0.06,203.92,203.89,4.90460542]
[1756635692804,0.06,203.92,203.9,38.42]
[1756635693005,0.06,203.92,203.9,39.11]
[1756635693204,0.06,203.92,203.91,0.69]
[1756635694108,0.06,203.92,203.9,38.42]
[1756635694694,0.06,203.92,203.91,38.42]
[1756635695816,0.06,203.92,203.91,39.11]
[1756635696726,0.06,203.92,203.91,44.01412436]
[1756635700811,0.74,203.92,203.91,38.42]
[1756635701011,0.06,203.92,203.91,38.42]
[1756635702022,0.74,203.92,203.91,38.42]
[1756635702803,0.06,203.92,203.91,38.42]
[1756635708531,0.74,203.92,203.91,38.42]
[1756635709601,0.74,203.92,203.91,38.4]
[1756635709813,5.64393984,203.92,203.91,38.4]
[1756635710124,11.96713084,203.92,203.91,38.4]
[1756635710528,7.063191,203.92,203.91,38.4]
[1756635711718,6.383191,203.92,203.91,38.4]
[1756635713619,7.063191,203.92,203.91,38.4]
[1756635714122,11.96707487,203.92,203.91,38.4]
[1756635714320,11.96707487,203.92,203.89,38.4]
[1756635714628,11.96707487,203.92,203.85,0.69]
[1756635714629,4.90460542,203.89,203.85,38.4]
[1756635714835,0.68,203.88,203.85,38.4]
[1756635715214,14.746,203.87,203.85,38.4]
[1756635715834,14.746,203.87,203.85,39.09]
[1756635716239,14.746,203.87,203.86,0.69]
[1756635716527,14.743826,203.89,203.86,0.69]
[1756635716727,14.743826,203.89,203.85,38.4]
[1756635716931,15.423826,203.89,203.85,39.09]
[1756635717126,14.743826,203.89,203.86,0.69]
[1756635718344,0.68,203.9,203.86,0.69]
[1756635718841,14.743826,203.89,203.85,43.30546893]
[1756635719010,5.64395169,203.92,203.87,0.69]
[1756635719213,15.423101,203.91,203.88,38.4]
[1756635721037,15.423101,203.91,203.89,0.69]
[1756635721038,14.743101,203.91,203.89,0.69]